bitfinex/quotes_SOLUSD_20230104
["timestamp","ask_amount","ask_price","bid_price","bid_amount"]
[1672819432818,14.26,13.97,13.946,53.83]
[1672819433229,2.1028657,13.971,13.946,53.83]
[1672819433857,14.21,13.97,13.946,53.83]
[1672819434283,312.0,13.968,13.965,20.0]
[1672819435652,312.0,13.968,13.946,53.83]
[1672819437981,2.1028657,13.971,13.96,45.3563647]
[1672819438160,2.1028657,13.971,13.965,113.79487684]
[1672819438370,2.1028657,13.971,13.965,60.04487684]
[1672819438706,2.1028657,13.971,13.965,20.0]
[1672819439107,14.21,13.97,13.965,20.0]
[1672819440065,2.1028657,13.971,13.965,20.0]
[1672819440486,14.19,13.97,13.965,20.0]
[1672819440684,14.19,13.97,13.946,53.83]
[1672819440888,312.0,13.966,13.946,53.83]
[1672819442164,71.04,13.97,13.964,101.8589942]
[1672819442693,43.4457527,13.969,13.964,101.8589942]
[1672819443529,71.04,13.97,13.964,101.8589942]
[1672819443743,14.26,13.97,13.965,20.0]
[1672819445301,312.0,13.966,13.965,20.0]
[1672819447732,2.1028657,13.971,13.965,20.0]
[1672819448379,2.1028657,13.971,13.966,40.20348138]
[1672819448560,2.1028657,13.971,13.967,20.0]
[1672819449087,2.1028657,13.971,13.964,101.8589942]
[1672819449088,2.1028657,13.971,13.965,115.02769218]
[1672819449930,53.66,13.989,13.965,115.02769218]
[1672819450257,14.21,13.98,13.965,115.02769218]
[1672819450475,14.21,13.98,13.965,20.0]
[1672819451513,53.67,13.987,13.965,73.75]
[1672819451732,110.0596,13.988,13.965,73.75]
[1672819452552,422.0596,13.988,13.965,73.75]
[1672819453521,110.0596,13.988,13.965,73.75]
[1672819454141,14.26,13.99,13.965,73.75]
[1672819454142,14.26,13.99,13.966,38.19018361]
[1672819454339,14.26,13.99,13.967,73.75]
[1672819454549,14.26,13.99,13.967,53.75]
[1672819454774,14.26,13.99,13.968,20.0]
[1672819454966,14.26,13.99,13.969,53.74]
[1672819455179,14.26,13.99,13.97,20.0]
[1672819455726,14.26,13.99,13.967,20.0]
[1672819455935,14.26,13.99,13.968,53.74]
[1672819456150,14.26,13.99,13.969,20.0]
[1672819456462,14.26,13.99,13.97,53.73]
[1672819456668,14.26,13.99,13.971,20.0]
[1672819457291,14.26,13.99,13.966,20.0]
[1672819457516,53.66,13.989,13.966,20.0]
[1672819457931,53.66,13.989,13.965,53.75]
[1672819458143,116.6343,13.988,13.965,53.75]
[1672819458340,53.67,13.987,13.965,53.75]
[1672819458552,116.6343,13.988,13.965,53.75]
[1672819458979,53.67,13.987,13.965,53.75]
[1672819459285,53.67,13.987,13.966,20.0]
[1672819459837,53.67,13.987,13.965,53.75]
[1672819460336,116.6343,13.988,13.964,101.8589942]
[1672819460547,53.67,13.987,13.965,53.75]
[1672819460766,116.6343,13.988,13.965,53.75]
[1672819461075,116.6343,13.988,13.966,20.0]
[1672819461288,116.6343,13.988,13.967,53.75]
[1672819461519,116.6343,13.988,13.968,20.0]
[1672819461825,116.6343,13.988,13.967,53.75]
[1672819462033,116.6343,13.988,13.968,20.0]
[1672819462436,312.0,13.983,13.968,20.0]
[1672819462642,312.0,13.983,13.966,20.0]
[1672819463307,312.0,13.983,13.965,73.75]
[1672819464346,116.6343,13.988,13.966,42.11354565]
[1672819464535,116.6343,13.988,13.967,73.75]
[1672819464954,116.6343,13.988,13.967,115.86354565]
[1672819465177,116.6343,13.988,13.968,37.99347539]
[1672819465393,116.6343,13.988,13.97,53.42790385]
[1672819465606,116.6343,13.988,13.971,73.73]
[1672819465812,116.6343,13.988,13.971,20.0]
[1672819466240,116.6343,13.988,13.966,20.0]
[1672819466863,116.6343,13.988,13.967,53.75]
[1672819467074,116.6343,13.988,13.968,20.0]
[1672819467287,312.0,13.983,13.969,53.74]
[1672819467496,312.0,13.983,13.97,34.21]
[1672819467707,312.0,13.983,13.971,53.73]
[1672819468032,116.6343,13.988,13.972,20.0]
[1672819468251,116.6343,13.988,13.972,62.37354565]
[1672819468439,116.6343,13.988,13.973,47.77866796]
[1672819468652,116.6343,13.988,13.974,20.0]
[1672819469080,116.6343,13.988,13.975,47.77866796]
[1672819469401,116.6343,13.988,13.976,20.0]
[1672819470012,116.6343,13.988,13.977,41.29944458]
[1672819470222,116.6343,13.988,13.978,20.0]
[1672819470445,50.0,13.99,13.978,20.0]
[1672819470971,50.0,13.99,13.979,47.77866796]
[1672819471169,50.0,13.99,13.981,42.78406377]
[1672819471379,50.0,13.99,13.983,42.78406377]
[1672819471592,50.0,13.99,13.984,20.0]
[1672819472238,50.0,13.99,13.983,20.0]
[1672819472656,110.0431,13.998,13.99,41.52724949]
[1672819472851,53.59,14.008,13.992,43.74252042]
[1672819473065,53.59,14.008,13.993,20.0]
[1672819473701,53.59,14.008,13.991,20.0]
[1672819474024,312.0,14.005,13.991,20.0]
[1672819474528,312.0,14.005,13.99,41.53581815]
[1672819474747,88.84121303,14.004,13.973,112.1728]
[1672819474966,53.6,14.004,13.97,133.18651207]
[1672819475283,53.6,14.006,13.971,112.1728]
[1672819475515,53.6,14.006,13.965,122.23277792]
[1672819475713,53.6,14.006,13.966,112.1728]
[1672819476023,53.6,14.006,13.97,38.48277792]
[1672819476226,53.6,14.006,13.971,53.73]
[1672819476425,53.6,14.006,13.971,83.81471572]
[1672819476637,108.182,14.007,13.972,68.56749364]
[1672819476844,53.6,14.006,13.973,53.72]
[1672819477173,53.6,14.006,13.974,50.0]
[1672819477388,53.6,14.006,13.975,53.72]
[1672819477592,53.6,14.006,13.976,20.0]
[1672819477803,53.6,14.006,13.977,53.71]
[1672819478116,312.0,13.997,13.978,20.0]
[1672819478325,312.0,13.997,13.979,53.7]
[1672819478530,312.0,13.997,13.98,20.0]
[1672819478956,312.0,13.997,13.98,89.47301088]
[1672819479163,312.0,13.997,13.981,69.47301088]
[1672819479385,312.0,13.997,13.982,20.0]
[1672819479594,312.0,13.997,13.982,50.99023296]
[1672819479806,53.64,13.996,13.982,20.0]
[1672819480128,53.6,14.006,13.976,20.0]
[1672819480644,53.6,14.006,13.975,20.0]
[1672819480850,53.6,14.006,13.974,113.2958]
[1672819481068,53.6,14.006,13.974,103.12657792]
[1672819482210,53.6,14.006,13.975,20.0]
[1672819482740,312.0,13.987,13.975,20.0]
[1672819483161,312.0,13.987,13.974,30.99023296]
[1672819483482,312.0,13.987,13.976,31.07689963]
[1672819483685,312.0,13.987,13.977,20.0]
[1672819483890,53.6,14.006,13.977,20.0]
[1672819484746,53.6,14.006,13.972,36.14200676]
[1672819484939,53.6,14.006,13.973,20.0]
[1672819485374,53.6,14.006,13.974,36.14200676]
[1672819485577,53.6,14.006,13.975,20.0]
[1672819486219,53.6,14.006,13.97,20.0]
[1672819486532,53.6,14.006,13.971,53.73]
[1672819486762,312.0,13.984,13.972,20.0]
[1672819486957,312.0,13.984,13.97,137.0432]
[1672819486958,312.0,13.984,13.97,20.0]
[1672819487367,312.0,13.984,13.965,20.0]
[1672819487569,117.957,13.983,13.965,20.0]
[1672819487777,117.957,13.983,13.964,101.8589942]
[1672819487990,117.957,13.983,13.965,31.07689963]
[1672819488630,117.957,13.983,13.965,64.35890639]
[1672819488840,117.957,13.983,13.966,39.89693716]
[1672819489164,117.957,13.983,13.967,33.28200676]
[1672819489372,117.957,13.983,13.968,20.0]
[1672819489792,117.957,13.983,13.969,39.89693716]
[1672819490004,117.957,13.983,13.97,20.0]
[1672819490215,53.59,14.008,13.97,56.79689963]
[1672819490414,115.7169,14.007,13.971,151.84114009]
[1672819490640,53.6,14.006,13.972,20.0]
[1672819490966,312.0,13.988,13.973,79.69890638]
[1672819491162,312.0,13.988,13.974,20.0]
[1672819491379,53.6,14.006,13.974,139.59584354]
[1672819491700,53.6,14.006,13.975,142.63907487]
[1672819492106,53.6,14.006,13.976,123.99907487]
[1672819492312,53.6,14.006,13.978,37.15744795]
[1672819492523,53.6,14.006,13.98,38.47213662]
[1672819492728,53.6,14.006,13.982,38.55146042]
[1672819492961,115.7169,14.007,13.983,20.0]
[1672819493148,53.6,14.006,13.983,99.83907487]
[1672819493364,53.6,14.006,13.984,20.0]
[1672819493580,53.6,14.006,13.984,119.83907487]
[1672819493798,53.6,14.006,13.985,99.83907487]
[1672819494011,53.6,14.006,13.986,20.0]
[1672819494203,53.6,14.006,13.986,119.05907487]
[1672819494415,53.6,14.006,13.987,99.05907487]
[1672819494625,53.6,14.006,13.988,20.0]
[1672819494832,53.6,14.006,13.988,66.62867342]
[1672819495061,53.6,14.006,13.988,20.0]
[1672819495896,53.6,14.006,13.983,52.25706811]
[1672819497461,53.6,14.006,13.984,20.0]
[1672819497680,53.6,14.006,13.983,52.25706811]
[1672819498427,312.0,13.99,13.983,52.25706811]
[1672819499040,312.0,13.99,13.984,20.0]
[1672819499251,117.5422,13.989,13.971,72.08373478]
[1672819499453,117.5422,13.989,13.972,53.73]
[1672819499686,117.5422,13.989,13.973,20.0]
[1672819499881,117.5422,13.989,13.973,68.97294272]
[1672819500094,117.5422,13.989,13.974,48.97294272]
[1672819500310,117.5422,13.989,13.975,20.0]
[1672819500729,117.5422,13.989,13.975,68.97294272]
[1672819502737,53.67,13.988,13.975,20.0]
[1672819502945,53.67,13.988,13.965,171.7118]
[1672819502946,53.67,13.988,13.966,20.0]
[1672819503164,53.67,13.988,13.967,30.0]
[1672819503354,53.67,13.988,13.962,41.50243818]
[1672819503566,53.67,13.988,13.963,53.76]
[1672819503785,53.67,13.988,13.964,143.36143238]
[1672819504206,365.67,13.988,13.965,30.0]
[1672819504417,365.67,13.988,13.964,143.36143238]
[1672819504633,365.67,13.988,13.964,101.8589942]
[1672819505037,365.67,13.988,13.965,20.0]
[1672819505248,53.67,13.988,13.965,20.0]
[1672819507790,824.0,13.965,13.964,101.8589942]
[1672819508007,53.67,13.988,13.964,140.06809904]
[1672819508195,365.67,13.988,13.964,140.06809904]
[1672819509029,365.67,13.988,13.965,20.0]
[1672819509272,844.0,13.97,13.965,20.0]
[1672819509466,844.0,13.97,13.965,69.83792255]
[1672819509782,844.0,13.97,13.964,101.8589942]
[1672819510305,844.0,13.97,13.965,49.83792255]
[1672819510526,844.0,13.97,13.964,101.8589942]
[1672819510936,844.0,13.97,13.965,49.83792255]
[1672819511784,844.0,13.97,13.964,101.8589942]
[1672819512199,1156.0,13.97,13.964,101.8589942]
[1672819512622,1156.0,13.97,13.965,20.0]
[1672819513147,844.0,13.97,13.965,20.0]
[1672819513572,824.0,13.965,13.964,101.8589942]
[1672819516290,1136.0,13.965,13.964,101.8589942]
[1672819516916,1134.2,13.965,13.964,101.8589942]
[1672819517125,822.2,13.965,13.964,101.8589942]
[1672819518084,822.2,13.965,13.964,121.8589942]
[1672819521444,1134.2,13.965,13.964,121.8589942]
[1672819521659,822.2,13.965,13.964,171.69691675]
[1672819522085,822.2,13.965,13.964,221.16185391]
[1672819523225,822.2,13.965,13.964,171.32393136]
[1672819523660,822.2,13.965,13.964,221.16185391]
[1672819523871,769.83996593,13.965,13.964,221.16185391]
[1672819524272,654.27237895,13.965,13.964,221.16185391]
[1672819525017,587.32237895,13.965,13.964,221.16185391]
[1672819525217,537.57938207,13.965,13.964,221.16185391]
[1672819525435,491.70528495,13.965,13.964,221.16185391]
[1672819528190,443.87695094,13.965,13.964,221.16185391]
[1672819529674,394.0130429,13.965,13.964,221.16185391]
[1672819529887,348.02743882,13.965,13.964,221.16185391]
[1672819530085,305.61849284,13.965,13.964,261.65091247]
[1672819530635,305.61849284,13.965,13.964,305.90179923]
[1672819531015,305.61849284,13.965,13.964,265.41274067]
[1672819532506,305.61849284,13.965,13.964,221.16185391]
[1672819532716,305.61849284,13.965,13.964,171.69691675]
[1672819532913,305.61849284,13.965,13.964,121.8589942]
[1672819533335,305.61849284,13.965,13.964,101.8589942]
[1672819536379,305.61849284,13.965,13.964,121.8589942]
[1672819540904,303.81849284,13.965,13.964,121.8589942]
[1672819541657,615.81849284,13.965,13.964,164.11654762]
[1672819543419,303.81849284,13.965,13.964,121.8589942]
[1672819543628,357.56849284,13.965,13.964,101.8589942]
[1672819544387,303.81849284,13.965,13.964,101.8589942]
[1672819545120,303.81849284,13.965,13.964,144.11654762]
[1672819545329,303.81849284,13.965,13.964,101.8589942]
[1672819546269,303.81849284,13.965,13.964,121.8589942]
[1672819546487,303.81849284,13.965,13.964,164.11654762]
[1672819546488,615.81849284,13.965,13.964,164.11654762]
[1672819547006,615.81849284,13.965,13.964,121.8589942]
[1672819547200,664.56849284,13.965,13.964,121.8589942]
[1672819547414,352.56849284,13.965,13.964,121.8589942]
[1672819547841,298.81849284,13.965,13.964,121.8589942]
[1672819551412,610.81849284,13.965,13.964,121.8589942]
[1672819552256,298.81849284,13.965,13.964,121.8589942]
[1672819555405,610.81849284,13.965,13.964,121.8589942]
[1672819556566,298.81849284,13.965,13.964,164.85025009]
[1672819556998,298.81849284,13.965,13.964,186.23765789]
[1672819557204,298.81849284,13.965,13.964,164.85025009]
[1672819557425,298.81849284,13.965,13.964,186.23765789]
[1672819558152,298.81849284,13.965,13.964,164.85025009]
[1672819558563,298.81849284,13.965,13.964,121.8589942]
[1672819561201,47.3992,13.976,13.964,186.23765789]
[1672819561415,312.0,13.973,13.966,41.59622021]
[1672819561618,312.0,13.973,13.968,41.59622021]
[1672819561851,312.0,13.973,13.969,20.0]
[1672819562033,312.0,13.973,13.967,69.08780654]
[1672819562239,24.2509,13.978,13.967,69.08780654]
[1672819562453,24.2509,13.978,13.969,49.12886417]
[1672819562680,24.2509,13.978,13.97,20.0]
[1672819563081,24.2509,13.978,13.969,20.0]
[1672819563626,24.2509,13.978,13.968,20.0]
[1672819564030,24.2509,13.978,13.966,20.0]
[1672819564454,24.2509,13.978,13.968,21.3874078]
[1672819564664,24.2509,13.978,13.969,20.0]
[1672819564997,24.2509,13.978,13.967,21.3874078]
[1672819565196,24.2509,13.978,13.968,20.0]
[1672819565513,336.2509,13.978,13.968,20.0]
[1672819566260,24.2509,13.978,13.968,20.0]
[1672819566662,24.2509,13.978,13.965,21.3874078]
[1672819566885,53.71,13.977,13.964,101.8589942]
[1672819567832,53.71,13.977,13.964,123.246402]
[1672819568239,77.9509,13.978,13.964,123.246402]
[1672819568661,77.9509,13.978,13.965,20.0]
[1672819568875,24.2509,13.978,13.965,20.0]
[1672819569080,53.71,13.977,13.965,41.3874078]
[1672819569506,53.71,13.977,13.965,20.0]
[1672819570780,53.71,13.977,13.965,41.3874078]
[1672819571507,365.71,13.977,13.965,41.3874078]
[1672819571718,365.71,13.977,13.965,20.0]
[1672819573287,365.71,13.977,13.966,38.52731802]
[1672819573502,312.0,13.977,13.966,38.52731802]
[1672819573711,312.0,13.977,13.967,20.0]
[1672819574138,312.0,13.977,13.968,40.60731802]
[1672819574362,312.0,13.977,13.969,20.0]
[1672819574664,24.2509,13.978,13.969,20.0]
[1672819574852,53.71,13.977,13.969,20.0]
[1672819575188,53.71,13.977,13.964,101.8589942]
[1672819575691,53.71,13.977,13.964,142.46631222]
[1672819575909,53.71,13.977,13.965,21.3874078]
[1672819576551,24.2509,13.978,13.966,20.0]
[1672819576977,24.2509,13.978,13.967,21.3874078]
[1672819577189,53.71,13.977,13.968,20.0]
[1672819577603,365.71,13.977,13.968,20.0]
[1672819578014,365.71,13.977,13.969,61.99472582]
[1672819578224,312.0,13.977,13.97,20.0]
[1672819578449,312.0,13.977,13.97,81.99472582]
[1672819578640,24.2509,13.978,13.971,65.89472582]
[1672819578847,22.6225,13.979,13.972,20.0]
[1672819579072,118.272,13.98,13.972,89.25679478]
[1672819579288,118.272,13.98,13.973,69.25679478]
[1672819579500,127.5787232,13.982,13.974,20.0]
[1672819579711,127.5787232,13.982,13.975,42.27655328]
[1672819579905,102.7522232,13.982,13.975,153.16782127]
[1672819580117,102.7522232,13.982,13.976,89.50386019]
[1672819580435,102.7522232,13.982,13.977,89.50386019]
[1672819580650,53.68,13.984,13.977,110.89126799]
[1672819580868,53.68,13.984,13.978,130.99559343]
[1672819581062,53.6,14.004,13.978,152.38300123]
[1672819581273,126.0612,14.004,13.979,47.86938698]
[1672819581594,312.0,13.991,13.974,20.0]
[1672819581793,53.66,13.99,13.975,47.86938698]
[1672819582219,53.66,13.99,13.976,21.3874078]
[1672819582430,168.4894,13.99,13.976,21.3874078]
[1672819582640,168.4894,13.99,13.977,94.5469404]
[1672819583077,168.4894,13.99,13.978,115.9343482]
[1672819583605,168.4894,13.99,13.979,115.9343482]
[1672819583800,114.8294,13.99,13.979,151.32606609]
[1672819584016,94.4545,14.001,13.98,199.2005393]
[1672819584215,94.4545,14.001,13.992,46.97126282]
[1672819584424,53.62,14.0,13.99,83.26110487]
[1672819584647,53.62,14.0,13.993,129.93865829]
[1672819584965,53.62,14.0,13.991,43.46030634]
[1672819585186,101.2425,14.0,13.991,43.46030634]
[1672819585368,101.2425,14.0,13.982,95.3074421]
[1672819585577,47.6225,13.999,13.985,21.3874078]
[1672819585807,53.63,13.998,13.985,21.3874078]
[1672819586018,53.63,13.998,13.986,46.67755342]
[1672819586548,53.63,13.998,13.986,72.08905136]
[1672819586735,53.63,13.998,13.987,25.29014562]
[1672819586947,53.63,13.998,13.982,21.3874078]
[1672819587277,101.2525,13.998,13.983,81.46224943]
[1672819587682,101.2525,13.998,13.984,81.46224943]
[1672819587901,47.6225,13.998,13.984,121.4558891]
[1672819588105,47.6225,13.998,13.985,122.84965723]
[1672819588315,47.6225,13.998,13.985,162.8432969]
[1672819588644,47.6225,13.998,13.986,102.84965723]
[1672819588851,47.6225,13.998,13.986,142.8432969]
[1672819589047,47.6225,13.998,13.987,102.84965723]
[1672819589257,47.6225,13.998,13.987,142.8432969]
[1672819589480,47.6225,13.998,13.988,102.84965723]
[1672819589888,47.6225,13.998,13.989,107.26965723]
[1672819590310,47.6225,13.998,13.99,107.26965723]
[1672819590752,47.6225,13.998,13.991,107.26965723]
[1672819590947,23.8075,14.0,13.991,107.26965723]
[1672819591274,23.8075,14.0,13.992,85.88224943]
[1672819591675,53.61,14.003,13.993,42.21655535]
[1672819592100,53.61,14.003,13.985,20.0]
[1672819592426,48.4467,14.002,13.988,43.66569408]
[1672819592638,53.62,14.001,13.985,67.19563967]
[1672819593148,53.62,14.001,13.985,63.66569408]
[1672819593363,102.0667,14.001,13.985,20.0]
[1672819594001,102.0667,14.001,13.981,116.784]
[1672819594218,47.4048,14.0,13.981,138.1714078]
[1672819594428,53.62,13.999,13.981,138.1714078]
[1672819594622,47.4048,13.998,13.981,138.1714078]
[1672819594828,53.63,13.997,13.981,138.1714078]
[1672819595157,101.0348,13.997,13.981,21.3874078]
[1672819595371,312.0,13.993,13.982,21.3874078]
[1672819595584,53.65,13.992,13.982,21.3874078]
[1672819596515,312.0,13.993,13.983,68.85931001]
[1672819596931,53.64,13.995,13.984,60.24671781]
[1672819597347,53.64,13.995,13.985,65.42071764]
[1672819597767,180.3712,13.996,13.986,95.42071764]
[1672819598094,71.6965,13.996,13.987,20.0]
[1672819598308,71.6965,13.996,13.987,134.52907838]
[1672819598514,71.6965,13.996,13.988,114.52907838]
[1672819598724,71.6965,13.996,13.988,159.58864058]
[1672819599048,71.6965,13.996,13.989,161.65130725]
[1672819599572,71.6965,13.996,13.99,167.18930717]
[1672819599786,100.0,14.0,13.99,167.18930717]
[1672819599994,100.0,14.0,13.991,169.26930716]
[1672819600188,100.0,14.0,13.996,53.61760355]
[1672819600398,100.0,14.0,13.992,169.26930716]
[1672819600626,100.0,14.0,13.997,120.0150783]
[1672819601148,100.0,14.0,13.998,73.22938422]
[1672819601559,100.0,14.0,13.999,122.89961308]
[1672819601979,100.0,14.0,13.999,73.22938422]
[1672819603020,100.0,14.0,13.999,122.89961308]
[1672819604386,100.0,14.0,13.999,73.22938422]
[1672819605016,100.0,14.0,13.999,173.35130716]
[1672819606498,100.0,14.0,13.999,73.22938422]
[1672819608810,100.0,14.0,13.993,90.50192294]
[1672819609017,100.0,14.0,13.997,21.3874078]
[1672819609232,100.0,14.0,13.999,51.94597642]
[1672819609867,100.0,14.0,13.997,21.3874078]
[1672819610287,100.0,14.0,13.994,51.94597642]
[1672819610509,100.0,14.0,13.998,51.94597642]
[1672819610824,100.0,14.0,13.988,42.73836075]
[1672819611038,53.62,13.999,13.996,21.3874078]
[1672819611229,53.62,13.999,13.989,30.0]
[1672819611769,53.62,13.999,13.973,24.5212]
[1672819611975,160.154,13.998,13.981,30.0]
[1672819612187,160.154,13.998,13.986,21.3874078]
[1672819612188,53.63,13.997,13.986,21.3874078]
[1672819613233,53.63,13.997,13.986,65.23210254]
[1672819613660,53.63,13.997,13.987,21.3874078]
[1672819614080,53.63,13.997,13.988,20.0]
[1672819614509,365.63,13.997,13.989,21.3874078]
[1672819614822,69.4297,13.998,13.99,20.0]
[1672819615033,100.0,14.0,13.99,63.84469474]
[1672819615242,100.0,14.0,13.991,21.3874078]
[1672819615452,100.0,14.0,13.991,65.23210254]
[1672819615638,100.0,14.0,13.992,63.84469474]
[1672819615975,100.0,14.0,13.992,41.3874078]
[1672819616288,100.0,14.0,13.993,65.23210254]
[1672819616489,100.0,14.0,13.994,20.0]
[1672819616712,100.0,14.0,13.994,136.20379661]
[1672819616908,100.0,14.0,13.995,116.20379661]
[1672819617238,100.0,14.0,13.996,114.81638881]
[1672819617547,100.0,14.0,13.997,68.6987692]
[1672819617765,100.0,14.0,13.997,116.20379661]
[1672819617954,100.0,14.0,13.998,88.6987692]
[1672819618173,100.0,14.0,13.998,183.53402547]
[1672819618389,100.0,14.0,13.999,116.20379661]
[1672819618719,100.0,14.0,13.999,183.53402547]
[1672819620913,53.56,14.015,14.003,51.03971586]
[1672819621116,47.5661,14.014,14.004,20.0]
[1672819621331,53.57,14.013,14.004,91.73210254]
[1672819621545,53.57,14.013,14.005,140.15444425]
[1672819621971,53.57,14.013,14.006,92.16071881]
[1672819622185,53.57,14.013,14.002,96.6938759]
[1672819622401,53.6,14.006,14.002,96.6938759]
[1672819622924,53.6,14.006,14.003,52.21849808]
[1672819623136,53.57,14.013,14.002,96.6938759]
[1672819623866,53.57,14.013,14.003,52.21849808]
[1672819624058,53.6,14.006,14.004,20.0]
[1672819624268,53.57,14.013,14.003,20.0]
[1672819624479,53.6,14.006,14.003,20.0]
[1672819625955,53.57,14.012,14.003,20.0]
[1672819626376,53.6,14.006,14.003,20.0]
[1672819628489,53.6,14.006,14.002,96.6938759]
[1672819630787,46.134,14.013,14.002,96.6938759]
[1672819630788,53.57,14.012,14.002,96.6938759]
[1672819631219,100.835,14.012,14.002,96.6938759]
[1672819631949,100.835,14.012,14.003,20.0]
[1672819632468,53.6,14.006,14.002,96.6938759]
[1672819632892,53.58,14.011,14.002,96.6938759]
[1672819633316,53.6,14.006,14.002,96.6938759]
[1672819635439,365.6,14.006,14.002,96.6938759]
[1672819636488,53.6,14.006,13.984,129.8131]
[1672819636685,53.6,14.006,13.985,50.0]
[1672819636686,167.6464,14.005,13.985,50.0]
[1672819636889,53.6,14.004,13.985,50.0]
[1672819637103,53.6,14.004,13.985,70.82346182]
[1672819637311,48.8214,14.003,13.986,20.82346182]
[1672819637633,48.8214,14.003,13.987,50.0]
[1672819637847,48.8214,14.002,13.987,84.54716475]
[1672819638164,48.8214,14.002,13.988,20.82346182]
[1672819638582,48.8214,14.002,13.989,20.0]
[1672819638994,48.8214,14.002,13.99,20.82346182]
[1672819639204,48.8214,14.002,13.991,20.0]
[1672819639518,48.8214,14.002,13.992,20.82346182]
[1672819639726,141.6512,14.005,13.992,55.37062657]
[1672819639933,141.6512,14.005,13.993,39.22716475]
[1672819640145,141.6512,14.005,13.994,20.0]
[1672819640709,141.6512,14.005,13.995,39.22716475]
[1672819641000,141.6512,14.005,13.996,40.82346182]
[1672819641202,22.8262,14.005,13.996,40.82346182]
[1672819641412,22.8262,14.005,13.997,63.95062657]
[1672819641619,22.8262,14.005,13.998,20.0]
[1672819641836,157.0661,14.014,13.998,83.95062657]
[1672819642030,53.57,14.013,13.999,63.95062657]
[1672819642560,47.6487,14.012,14.0,20.0]
[1672819642772,53.58,14.011,14.0,20.0]
[1672819643421,53.58,14.011,13.995,20.0]
[1672819643740,47.6487,14.01,13.995,20.0]
[1672819643942,53.59,14.009,13.995,20.0]
[1672819644156,101.2387,14.009,13.995,20.0]
[1672819644678,53.6,14.006,13.995,20.0]
[1672819645191,53.6,14.006,13.981,133.18651207]
[1672819645403,53.6,14.006,13.964,310.28644675]
[1672819645404,312.0,14.003,13.977,111.0497]
[1672819645613,58.0822197,14.002,13.977,111.0497]
[1672819645943,181.10236074,14.002,13.977,111.0497]
[1672819646154,229.40756074,14.002,13.977,111.0497]
[1672819646339,4.4722197,14.0,13.977,111.0497]
[1672819646545,4.4722197,13.998,13.977,111.0497]
[1672819646776,53.63,13.997,13.977,111.0497]
[1672819647204,48.3052,13.997,13.977,111.0497]
[1672819647514,48.3052,13.997,13.978,20.0]
[1672819647703,53.64,13.996,13.978,20.0]
[1672819648132,101.9352,13.997,13.978,40.82346182]
[1672819648332,48.3052,13.997,13.978,40.82346182]
[1672819648546,48.3052,13.997,13.978,69.07387669]
[1672819650147,48.3052,13.997,13.978,138.27063908]
[1672819650335,48.3052,13.997,13.979,30.0]
[1672819650545,48.3052,13.997,13.98,20.0]
[1672819650779,48.3052,13.997,13.98,72.28054335]
[1672819650970,48.3052,13.997,13.981,20.82346182]
[1672819651185,48.3052,13.997,13.982,20.0]
[1672819651509,48.3052,13.997,13.983,20.82346182]
[1672819651721,48.3052,13.997,13.984,20.0]
[1672819652244,48.3052,13.997,13.985,20.82346182]
[1672819652459,48.3052,13.997,13.986,20.0]
[1672819653595,48.3052,13.997,13.985,20.0]